Cogmind - Beta 16.1 @@@ ROGUE MODE // 2026.04.27 @ 00:26:43 Player: Bereft Result: Destroyed by G-34 Mercenary with Small Laser Performance ------------- Evolutions (1) 500 Regions Visited (3) 600 Robots Destroyed (33) 165 Value Destroyed (748) 748 Prototype IDs (0) 0 Alien Tech Used (0) 0 Bonus (0) 0 TOTAL SCORE: 2013 Bonus ------- None Cogmind --------- Core Integrity 0/400 Matter 300/300 Energy 100/100 System Corruption 6% Temperature Cool (6) Movement Core (200) Ox3 Location -9/Materials Parts ------- > --- POWER (1) -------- (None) > --- PROPULSION (2) --- (None) > --- UTILITY (4) ------ Medium Storage Unit Visual Processing Unit > --- WEAPON (2) ------- Mace > --- INVENTORY (10) --- Datajack Mace Mace Mace Mace Peak State ------------ > --- POWER ------------ Ion Engine > --- PROPULSION ------- Aluminum Leg Aluminum Leg > --- UTILITY ---------- Heat Sink Medium Storage Unit ECM Suite Shield Generator > --- WEAPON ----------- Rocket Launcher Mace > --- INVENTORY -------- Ion Engine Compact Matter Pod Datajack Mace Mace Mace Mace Mace [Rating: 13] Favorites ----------- Power Ion Engine Engine Ion Engine Propulsion Aluminum Leg Leg Aluminum Leg Utility Medium Storage Unit Device Shield Generator Storage Medium Storage Unit Processor Visual Processing Unit Weapon Mace Launcher Grenade Launcher Impact Weapon Mace Special Melee Weapon Datajack Build | -11 -10 -10 -9 ------- Run | Yrd Mat Min Mat Slots Evolved 2 | . . . 2 Power . | . . . . Propulsion . | . . . . Utility 2 | . . . 2 Weapon . | . . . . Parts Attached 31 | 5 12 4 10 Power 4 | 2 . 1 1 Engine 4 | 2 . 1 1 Core . | . . . . Reactor . | . . . . Propulsion 10 | 2 3 1 4 Treads . | . . . . Leg 10 | 2 3 1 4 Wheel . | . . . . Hover . | . . . . Flight . | . . . . Utility 10 | 1 4 1 4 Device 5 | . 2 1 2 Storage 4 | 1 2 . 1 Processor 1 | . . . 1 Hackware . | . . . . Protection . | . . . . Artifact . | . . . . Weapon 7 | . 5 1 1 Energy Gun . | . . . . Energy Cannon . | . . . . Ballistic Gun . | . . . . Ballistic Cannon . | . . . . Launcher 2 | . 1 1 . Special Weapon . | . . . . Impact Weapon 4 | . 3 . 1 Slashing Weapon . | . . . . Piercing Weapon . | . . . . Special Melee Weapon 1 | . 1 . . Unidentified Prototypes . | . . . . Corrupted Parts 1 | . . . 1 System Corruption 5 | . . . 5 Parts Lost 13 | . . 1 12 Power 1 | . . . 1 Propulsion 6 | . . 1 5 Utility 4 | . . . 4 Weapon 2 | . . . 2 Highest Loss Streak 5 | . . 1 5 To Critical Strikes . | . . . . Average Backups 7 | 1 7 10 6 Power . | . . 1 . Propulsion . | . . . . Utility 1 | . 1 3 . Weapon 4 | . 3 5 4 Tool/Special . | . . . . Unused Backups 3 | . . 1 2 Power . | . . . . Propulsion . | . . . . Utility 1 | . . 1 . Weapon 2 | . . . 2 Tool/Special . | . . . . Average Slot Usage (%) 86 | . 83 98 77 Engine 11 | . 14 14 6 Leg 22 | . 24 26 17 Device 14 | . 11 14 16 Storage 13 | . 11 14 14 Processor 2 | . . . 6 Launcher 8 | . 9 14 2 Impact Weapon 12 | . 12 14 11 Peak Build Rating 13 | 4 11 11 13 Average Rating 9 | 1 8 10 10 On Entrance 5 | . 1 10 11 Avg Prop Armor Cover (%) . | . . . . Naked Turns . | . . . . Heaviest Build 26 | 10 22 23 26 Greatest Support 20 | 20 20 20 20 Greatest Overweight (x) 6 | . 1 2 6 Average Overweight (x) . | . . 1 . Largest Inventory Capacity 10 | 8 10 10 10 Average Capacity 9 | 5 8 10 10 Most Carried 10 | 4 10 10 9 Average Carried 7 | 1 7 9 6 Final Capacity 10 | 5 10 10 10 Final Carried 10 | 4 10 10 5 Class Distribution -------------------- 83% | Mutant 16% | Scavenger-Mutant Dominant Class ---------------- Mutant | -10/Materials Mutant | -10/Mines Mutant | -9/Materials Resources | -11 -10 -10 -9 ----------- Run | Yrd Mat Min Mat Matter Collected 943 | 192 88 552 111 Remotely . | . . . . Salvage Created 772 | . 217 155 400 Parts 41 | . 17 13 11 Haulers Intercepted . | . . . . Recyclers Shooed . | . . . . Parts Field Recycled . | . . . . Retrieved Matter . | . . . . Parts Self-Destructed . | . . . . Prevented . | . . . . Parts Restored . | . . . . Kills | -11 -10 -10 -9 ------- Run | Yrd Mat Min Mat Combat Hostiles Destroyed 28 | . 12 8 8 Melee 9 | . 3 1 5 AOE 13 | . 7 6 . Classes Destroyed 8 | . 3 2 3 Worker 1 | . . 1 . Tunneler 1 | . . 1 . Recycler 2 | . 1 . 1 Watcher 1 | . . . 1 Swarmer 15 | . 9 6 . Grunt 10 | . 3 2 5 Brawler 1 | . . . 1 Sentry 2 | . . . 2 Best Kill Streak 6 | . 6 4 3 Combat Bots Only 5 | . 5 3 3 Max Kills in Single Turn 4 | . 3 4 1 Gunslinging . | . . . . Exploded 3 | . 3 3 . Melee 1 | . 1 1 1 Uniques/NPCs Destroyed . | . . . . Combat | -11 -10 -10 -9 -------- Run | Yrd Mat Min Mat Hostile Shots Fired 251 | . 56 73 122 Missed 61 | . 21 8 32 Hits 190 | . 35 65 90 Projectile 190 | . 35 65 90 AOE 1 | . . . 1 Critical Strikes 4 | . . . 4 Damage Taken 1925 | . 236 473 1216 Core 547 | . 50 94 403 Absorbed by Shields 293 | . 92 195 6 Regen/Repaired (Parts) 29 | . 29 . . Core Remaining (%) 71 | 100 . 42 . Volleys Fired 12 | . 5 6 1 Largest 1 | . 1 1 1 Hottest 33 | . 30 33 33 Shots Fired 12 | . 5 6 1 Gun . | . . . . Cannon . | . . . . Launcher 12 | . 5 6 1 Special . | . . . . Kinetic . | . . . . Thermal . | . . . . Explosive 12 | . 5 6 1 Electromagnetic . | . . . . Robot Hit Streak 3 | . 2 3 . Robot Miss Streak 1 | . . 1 . Penetration Max . | . . . . Secondary Targets . | . . . . Shots Hit Robots 58 | . 10 10 38 Core Hits 24 | . 9 9 6 Critical Kills 4 | . . 1 3 Critical Parts Destroyed 7 | . 2 1 4 Critical Strikes 12 | . 2 2 8 Smash 12 | . 2 2 8 Melee Attacks 70 | . 12 11 47 Impact 65 | . 11 11 43 Slashing . | . . . . Piercing . | . . . . Sneak Attacks 8 | . 2 1 5 Combat Hostiles . | . . . . Follow-up Attacks . | . . . . Damage Inflicted 2034 | . 513 649 872 Guns . | . . . . Cannons . | . . . . Explosions 629 | . 262 342 25 Melee 1405 | . 251 307 847 Ramming . | . . . . Kinetic . | . . . . Thermal . | . . . . Explosive 629 | . 262 342 25 Electromagnetic . | . . . . Impact 1405 | . 251 307 847 Slashing . | . . . . Piercing . | . . . . Highest Corruption 6 | . . . 6 Average Corruption 5 | . . . 5 Corruption Purged . | . . . . Corruption Blocked . | . . . . Effects 4 | . . . 4 Message Errors 2 | . . . 2 Heat Flow Errors 1 | . . . 1 Energy Discharges 1 | . . . 1 Overload Shots . | . . . . Overflow Damage 365 | . 106 119 140 Projectiles . | . . . . Explosions 10 | . . 10 . Melee 355 | . 106 109 140 Knockbacks 7 | . . 4 3 Impact 7 | . . 4 3 Kinetic . | . . . . Secondary . | . . . . Self-Inflicted Damage 64 | . 38 26 . Shots 4 | . 2 2 . Rammed . | . . . . Targets Rammed . | . . . . Kicked . | . . . . Crushed . | . . . . Highest Temperature 83 | . . . 83 Average Temperature 31 | . . . 31 Received Heat Transfer 692 | . 20 102 570 Siege Activations . | . . . . Martial Activations . | . . . . Shielding Activations . | . . . . Robots Disrupted . | . . . . Combat Hostiles . | . . . . Robots Corrupted 8 | . 3 2 3 Combat Hostiles 6 | . 2 1 3 Parts Fried 10 | . 4 3 3 Impact Corruptions 20 | . 6 5 9 Robots Melted . | . . . . Combat Hostiles . | . . . . Parts Melted . | . . . . Heat Transferred . | . . . . Parts Sabotaged . | . . . . Parts Stolen . | . . . . Parts Stripped . | . . . . Power Chain Reactions . | . . . . Alert | -11 -10 -10 -9 ------- Run | Yrd Mat Min Mat Maximum Alert Level 1 | . 1 . . Low Security (%) 88 | 100 67 100 100 Level 1 11 | . 32 . . Level 2 . | . . . . Level 3 . | . . . . Level 4 . | . . . . Level 5 . | . . . . High Security . | . . . . Max Security . | . . . . Peak Influence 243 | . 243 158 61 Initial 84 | . . 84 55 Average 69 | . 114 77 21 Influence Increases 947 | . 411 298 238 Destroy 0b10 Robot/C 560 | . 240 160 160 Destroy 0b10 Robot/NC 25 | . 5 10 10 Destroy Leader 122 | . 50 30 42 Successful Hack 14 | . 14 . . Disable Machine 105 | . 60 30 15 Destroy Structure 76 | . 12 53 11 Partial Spotted 15 | . 15 . . Lose Combat Pursuer 30 | . 15 15 . Influence Decreases 934 | . 195 372 367 Entered New Map 219 | . . 132 87 Time Decay 615 | . 195 230 190 Lost Part 100 | . . 10 90 Squads Dispatched 2 | . 2 . . Investigation 1 | . 1 . . Extermination . | . . . . Reinforcement 1 | . 1 . . Assault . | . . . . Garrison . | . . . . Intercept . | . . . . Searches Triggered . | . . . . Construction Impeded . | . . . . Haulers Reinforced . | . . . . Active Scanning Responses . | . . . . Cargo Convoy Interrupts . | . . . . Stealth | -11 -10 -10 -9 --------- Run | Yrd Mat Min Mat Distress Signals 1 | . 1 . . Communications Jammed . | . . . . Distress Signals . | . . . . Times Spotted 46 | . 18 9 19 Peak Tracking Total 6 | . 5 3 6 Tactical Retreats 5 | . 1 1 3 ECM-based Alert Blocks 7 | . . . 7 Traps | -11 -10 -10 -9 ------- Run | Yrd Mat Min Mat Traps Triggered 1 | . . . 1 Indirectly . | . . . . Trap Hack Attempts . | . . . . Triggered . | . . . . Disarmed . | . . . . Reprogrammed . | . . . . Reused . | . . . . Traps Extracted . | . . . . Installed . | . . . . Triggered . | . . . . Machines | -11 -10 -10 -9 ---------- Run | Yrd Mat Min Mat Machines Disabled 7 | . 4 2 1 Max in Single Turn 2 | . 2 1 1 Machines Repaired . | . . . . Machines Dismantled . | . . . . Machines Sabotaged . | . . . . Overloaded Fab Kills . | . . . . Hacking | -11 -10 -10 -9 --------- Run | Yrd Mat Min Mat Machines Accessed 6 | . 4 . 2 Terminals 3 | . 3 . . Fabricators . | . . . . Repair Stations 1 | . 1 . . Recycling Units 1 | . . . 1 Scanalyzers 1 | . . . 1 Garrison Access . | . . . . Total Hacks 23 | . 17 . 6 Successful 13 | . 10 . 3 Failed 9 | . 7 . 2 Catastrophic 2 | . 1 . 1 Database Lockouts 1 | . . . 1 Manual 10 | . 7 . 3 Terminals 14 | . 14 . . Fabricators . | . . . . Repair Stations 3 | . 3 . . Recycling Units 3 | . . . 3 Scanalyzers 3 | . . . 3 Garrison Access . | . . . . Terminal Hacks 5 | . 5 . . Emergency Access Points 1 | . 1 . . Locate Traps 1 | . 1 . . Dispatch Records 1 | . 1 . . Zone Layout 2 | . 2 . . Fabricator Hacks . | . . . . Repair Station Hacks 2 | . 2 . . Scan Component 1 | . 1 . . Repair 1 | . 1 . . Recycling Unit Hacks . | . . . . Scanalyzer 2 | . . . 2 Retrieve Study 2 | . . . 2 Garrison Access Hacks . | . . . . Unauthorized Hacks 4 | . 3 . 1 Terminals 3 | . 3 . . Track 2 | . 2 . . Assimilate 1 | . 1 . . Fabricators . | . . . . Repair Stations . | . . . . Recycling Units 1 | . . . 1 Reject 1 | . . . 1 Scanalyzers . | . . . . Garrison Access . | . . . . Data Cores Recovered . | . . . . Used . | . . . . Hacking Detections 5 | . 4 . 1 Full Trace Events 3 | . 2 . 1 Feedback Events 1 | . . . 1 Corruption 1 | . . . 1 Feedback Blocked . | . . . . Robot Schematics Acquired . | . . . . Robots Built . | . . . . Authchips . | . . . . Time . | . . . . Total Robot Build Rating . | . . . . Part Schematics Acquired . | . . . . Parts Built . | . . . . Authchips . | . . . . Time . | . . . . Total Part Build Rating . | . . . . Part Studies Acquired 2 | . . . 2 Parts Repaired 1 | . 1 . . Time 26 | . 26 . . Parts Recycled . | . . . . Recycled Matter . | . . . . Retrieved Matter . | . . . . Retrieved Components . | . . . . Parts Scanalyzed . | . . . . Part Schematics Acquired . | . . . . Parts Damaged . | . . . . Bothacking | -11 -10 -10 -9 ------------ Run | Yrd Mat Min Mat Used RIF Installer . | . . . . Robots Hacked 3 | . . . 3 Non-combat 3 | . . . 3 Combat . | . . . . Robot Hacks Applied 3 | . . . 3 parse_system 1 | . . . 1 find_recycling 2 | . . . 2 Relay Couplers Released . | . . . . Fabnet Peak Effective % . | . . . . Robots Rewired . | . . . . Allies Hacked . | . . . . Hacks Repelled . | . . . . Allies | -11 -10 -10 -9 -------- Run | Yrd Mat Min Mat Total Allies . | . . . . Largest Group . | . . . . Highest-Rated Group . | . . . . Highest-Rated Ally . | . . . . Total Orders . | . . . . Ally Attacks . | . . . . Total Damage . | . . . . Kills . | . . . . Allies Corrupted . | . . . . Allies Melted . | . . . . Intel | -11 -10 -10 -9 ------- Run | Yrd Mat Min Mat Active Infowar (turns) 577 | . . . 577 Optics 360 | . . . 360 ECM 318 | . . . 318 Robot Analysis Total . | . . . . Derelict Logs Recovered 2 | . . 2 . Drone Launches . | . . . . Drone Recoveries . | . . . . Exploration | -11 -10 -10 -9 ------------- Run | Yrd Mat Min Mat Turns Passed 1696 | 40 584 494 578 Spaces Moved 893 | 43 378 225 247 Core 185 | 31 135 . 19 Treads . | . . . . Legs 708 | 12 243 225 228 Wheels . | . . . . Hover . | . . . . Flight . | . . . . Fastest Speed 50 | 50 50 120 120 Average Speed 147 | 69 114 194 167 Slowest Speed 350 | 120 190 260 350 Overloaded Moves . | . . . . Propulsion Burnouts . | . . . . Robots Hopped . | . . . . Potential Cave-ins . | . . . . Cave-ins Triggered . | . . . . Exploration Rate (%) 31 | 3 50 51 21 Regions Visited 3 Branch Regions 1 Pre-discovered Areas 2 | . . 2 . Known Exits Taken . | . . . . Unknown Exits Taken 3 | 1 1 1 . Scrap Searched . | . . . . Spaces Dug . | . . . . Terrain Destroyed 77 | . 10 56 11 Melee . | . . . . Projectile . | . . . . AOE 77 | . 10 56 11 Terrain Rammed . | . . . . Walls Destroyed . | . . . . Machines Disabled . | . . . . Actions | -11 -10 -10 -9 --------- Run | Yrd Mat Min Mat Total 1147 | 51 507 257 332 Wait 93 | . 73 . 20 Move 890 | 42 377 224 247 Hop . | . . . . Pick Up 17 | 1 12 3 1 Fast Attach 15 | 4 4 3 4 Attach 13 | . 7 1 5 Detach 6 | 3 3 . . Swap 13 | 1 6 2 4 Drop 18 | . 8 7 3 Fire 12 | . 5 6 1 Melee 70 | . 12 11 47 Ram . | . . . . Kick . | . . . . Crush . | . . . . Escape Stasis . | . . . . Rewire . | . . . . Trap . | . . . . Miscellaneous . | . . . . Route ------- -11/Scrapyard -10/Materials (discovered 4 exits: *Mat x2 / [*Min x2]) -10/Mines (discovered 2 exits: *Mat x2) -9/Materials (discovered 1 exit: [*Min]) History --------- Turn | Location | Event 4 | -11/Scrapyard | Discovered new exit (range 14) 41 | -11/Scrapyard | Entered Materials 313 | -10/Materials | Build established: Mutant 352 | -10/Materials | Discovered new exit (range 10) 363 | -10/Materials | Discovered new exit (range 15) 471 | -10/Materials | Repaired Grenade Launcher 526 | -10/Materials | Discovered new exit (range 6) 588 | -10/Materials | Discovered new exit (range 7) 625 | -10/Materials | Entered Mines 721 | -10/Mines | Learned location of Mines (-9) 753 | -10/Mines | Received a Rocket Launcher from a helpful Derelict 916 | -10/Mines | Discovered new exit (range 12) 948 | -10/Mines | Learned location of Zion (-7) 1004 | -10/Mines | Discovered new exit (range 12) 1047 | -10/Mines | Core integrity fell below 50% 1119 | -10/Mines | Entered Materials 1119 | -9/Materials | Evolved 2 slots: Utility x2 1499 | -9/Materials | Lost 5 parts (1p2n2u) 1623 | -9/Materials | Core integrity fell below 50% 1649 | -9/Materials | Central database locked down 1681 | -9/Materials | Core integrity fell below 20% 1683 | -9/Materials | Discovered new exit (range 14) 1697 | -9/Materials | Destroyed by G-34 Mercenary with Small Laser Last Messages --------------- G-47 Trooper destroyed. G-34 Mercenary knocked back. Aluminum Leg destroyed. Acquired Aluminum Leg. Com. Matter Pod destroyed. K-01 Serf collects debris. Fusion Modulator explodes. Aluminum Leg destroyed. G-34 Mercenary destroyed. EXIT=FOUND K-01 Serf collects debris. U-05 Engineer lays Concrete. 347O:J:3PPH1L GPVSCHFOK|E/M3P =1RR Destroyed Ion Engine. G-34 Mercenary system corrupted by crushing effect. G-34 Mercenary knocked back. U-05 Engineer lays Concrete. K-01 Serf collects debris. U-05 Engineer builds a Wall. Map ----- +----------------------------------------------------+ | # #???# "Y" ## #??????????????????????????? | | # #??## " " + #??????????????????????????? | | # #??# ## #??????????????????????????? | | # #??## """ ## #??????????????????????????? | | # #???# """ ## #??????????????????????????? | | # #???# """ ## #??????????????????????????? | | # #???# ## ##?????????? #?????????????? | | + ##########+### #????????? #?????????????? | | # #???????? #?????????????? | | # #????????! #?????????????? | | # #??????? #?????????????? | | # ##########+### % #######? #?????????????? | | # #??????? ??###+####;;;;## % #?????????????? | | # #?????? ???# u ;; #?????????????? | | # #????? ????# k ;; ???????????????? | | # #??? ?????# ;;"##+#####?????????? | | # #??# ??????#"S ; ??????????? | | # #??# ???????#""" ; ####??????????? | | # ??#?????????# "" " !##?????????? | | ????????????# " !#?????????? | | ?????#####??#####;;;%=;"""### !#?????????? | | ????# ##### % ; #?????????????????? | | ??? u #####?????????????????? | | T ??? < #?????????????????????? | | ?? ????? #?????????????????????? | | ??????????" "##### @ #?????????????????????? | | ??????????" !"| ?????###g###?????????????????????? | | ?????????????"???????? ????????????????????????? | | ?????????????????????# ????????????????????????? | | ?????????????????????#k ????????????????????????? | | ?????????????????????+ ????????????????????????? | | ?????????????????????# ????????????????????????? | | ?????????????????????# ]????????????????????????? | | ?????????????????????# ????????????????????????? | | ?????????????????????# ?????????????????????????? | | ?????????????????????# ?????????????????????????? | | ?????????????????????###?????????????????????????? | | ?????????????????????????????????????????????????? | | ?????????????????????????????????????????????????? | | ?????????????????????????????????????????????????? | | ?????????????????????????????????????????????????? | | ?????????????????????????????????????????????????? | | ?????????????????????????????????????????????????? | | ?????????????????????????????????????????????????? | | ?????????????????????????????????????????????????? | | ?????????????????????????????????????????????????? | | ?????????????????????????????????????????????????? | | ?????????????????????????????????????????????????? | | ?????????????????????????????????????????????????? | | ?????????????????????????????????????????????????? | +----------------------------------------------------+ Best States ------------- Heat Dissipation 38 Energy Generation 10 Energy Capacity 250 Matter Stores 450 Matter Capacity 450 Sight Range 18 Terrain Scan Density 10 ECM Strength 1 Evasion (%) 55 Item Schematics ----------------- None Robot Schematics ------------------ None Fabricated ------------ Nothing Repaired ---------- Grenade Launcher | 51% | -10/Materials Studied --------- Mace | -9/Materials | Hacked Datajack | -9/Materials | Hacked Alien Tech Used ----------------- None Achievements -------------- None Challenges ------------ None Game ------ Seed HybridSignalArachnoskeleton Manual? 0 Play Time 00:14:56 Cumulative 31.3 hours Start 2026.04.27 @ 00:11:55 End 2026.04.27 @ 00:26:43 Sessions 1 Manual Loads 0 Difficulty Rogue Special Mode None Game No. 62 Rogue 62 Adventurer 0 Explorer 0 Win Type - Total 0 Types 0/0/0/0/0/0/0/0/0/0 Lore% 24 Gallery% 25 Achievement% 23 Wizard Run 0 Options --------- Layout 1 ASCII 0 Keyboard 0 Movement Mouse Keybinds 0 Fullscreen 1 Font 32/SmallcapsGlow Map View 50x35 Zoom Use 2% Tactical HUD 0 Map Filters NONE Filters NONE Steam 1 RUN: 80fb164e-0364-4013-9c70-337b10e24b03